fUSD/lending_fUSD_20251027
["ID","MTS","AMOUNT","RATE_DAILY","PERIOD"]
[392505064,1761583833380,-2500.0,0.00027188,2]
[392505065,1761583833390,-2500.0,0.00027188,2]
[392505066,1761583833400,-824.0,0.00027195,3]
[392505067,1761583833411,-824.0,0.00027195,3]
[392505068,1761583833420,-824.0,0.00027195,3]
[392505069,1761583833432,-824.0,0.00027195,3]
[392505070,1761583833443,-848.6292097,0.00027195,3]
[392505071,1761583833455,-7337.6091,0.00027197,2]
[392505072,1761583833465,-2500.0,0.00027197,2]
[392505073,1761583833476,-166.11179013,0.00027199,2]
[392505074,1761583833486,-500.0,0.00027199,2]
[392505075,1761583833497,-256.45149684,0.00027199,2]
[392505076,1761583833509,-426.82502692,0.00027199,2]
[392505077,1761583833519,-6661.21038245,0.000272,2]
[392505078,1761583833555,-16314.62954643,0.000272,2]
[392505079,1761583833567,-4096.03144748,0.000272,2]
[392505080,1761583833577,-643.27021432,0.000272,2]
[392505081,1761583833589,-1047.1427782,0.000272,2]
[392505086,1761583837963,-952.8572218,0.000272,2]
[392505087,1761583837986,-955.75,0.00027205,2]
[392505088,1761583838005,-3141.91293472,0.00027241,2]
[392505089,1761583838026,-500.0,0.00027241,2]
[392505090,1761583838046,-187.4396626,0.00027242,2]
[392505091,1761583838067,-50327.85486961,0.00027242,2]
[392505092,1761583838083,-174.525468,0.00027242,7]
[392505093,1761583838103,-174.525468,0.00027242,7]
[392505094,1761583838116,-174.525468,0.00027242,7]
[392505095,1761583838134,-174.525468,0.00027242,7]
[392505096,1761583838148,-500.0,0.00027273,2]
[392505098,1761583838167,-1000.0,0.00027287,2]
[392505100,1761583838183,-33200.2039,0.00027287,2]
[392505101,1761583838198,-265.336712,0.00027297,5]
[392505102,1761583838214,-151.0,0.00027297,7]
[392505103,1761583838230,-151.0,0.00027297,7]
[392505104,1761583838248,-16733.4755991,0.00027297,2]
[392505107,1761583838279,-714.65189828,0.00027297,2]
[392505110,1761583838303,-174.525468,0.00027297,7]
[392505115,1761583838323,-174.525468,0.00027297,7]
[392505118,1761583838341,-174.525468,0.00027297,7]
[392505121,1761583838359,-174.525468,0.00027297,7]
[392505124,1761583838377,-265.652,0.00027362,2]
[392505127,1761583838394,-160.91835652,0.00027373,2]
[392505128,1761583838411,-502.10628795,0.00027373,2]
[392505129,1761583838428,-501.66177155,0.00027373,2]
[392505130,1761583838445,-500.0,0.00027373,2]
[392505131,1761583838468,-1005.57,0.00027386,2]
[392505132,1761583838489,-198.981655,0.00027387,7]
[392505133,1761583838509,-151.0,0.00027387,7]
[392505134,1761583838529,-151.0,0.00027387,7]
[392505135,1761583838547,-151.0,0.00027387,7]
[392505136,1761583838565,-151.0,0.00027387,7]
[392505137,1761583838582,-151.0,0.00027387,7]
[392505138,1761583838602,-151.0,0.00027387,7]
[392505139,1761583838618,-500.0,0.00027387,2]
[392505140,1761583838641,-174.525468,0.00027387,7]
[392505141,1761583838658,-174.525468,0.00027387,7]
[392505142,1761583838676,-174.525468,0.00027387,7]
[392505143,1761583838693,-174.525468,0.00027387,7]
[392505144,1761583838711,-97596.2217255,0.00027387,3]
[392505145,1761583838730,-500.0,0.00027396,2]
[392505146,1761583838741,-500.0,0.00027396,2]
[392505147,1761583838751,-500.0,0.00027396,2]
[392505148,1761583838761,-171.1816086,0.00027397,3]
[392505149,1761583838771,-151.0,0.00027397,7]
[392505150,1761583838781,-151.0,0.00027397,7]
[392505151,1761583838987,-151.0,0.00027397,7]
[392505152,1761583838998,-209.035663,0.00027397,7]
[392505153,1761583839009,-808.905346,0.00027397,7]
[392505154,1761583839019,-808.905346,0.00027397,7]
[392505155,1761583839029,-808.905346,0.00027397,7]
[392505156,1761583839039,-808.905341,0.00027397,7]
[392505157,1761583839049,-151.0,0.00027397,7]
[392505158,1761583839059,-151.0,0.00027397,7]
[392505159,1761583839069,-151.0,0.00027397,7]
[392505160,1761583839079,-151.0,0.00027397,7]
[392505161,1761583839089,-151.0,0.00027397,7]
[392505162,1761583839098,-151.0,0.00027397,7]
[392505163,1761583839109,-151.0,0.00027397,7]
[392505164,1761583839118,-151.0,0.00027397,7]
[392505165,1761583839128,-151.0,0.00027397,7]
[392505166,1761583839138,-195.446817,0.00027397,7]
[392505167,1761583839148,-174.525468,0.00027397,7]
[392505168,1761583839158,-174.525468,0.00027397,7]
[392505169,1761583839171,-174.525468,0.00027397,7]
[392505170,1761583839181,-174.525468,0.00027397,7]
[392505171,1761583839191,-174.525468,0.00027397,7]
[392505172,1761583839200,-174.525468,0.00027397,7]
[392505173,1761583839211,-11792.42,0.00027397,2]
[392505174,1761583839221,-882.75,0.00027397,30]
[392505175,1761583839231,-157.296335,0.00027397,31]
[392505176,1761583839241,-151.000016,0.00027397,31]
[392505177,1761583839250,-151.0,0.00027397,31]
[392505178,1761583839260,-167.674188,0.00027397,31]
[392505179,1761583839270,-151.0,0.00027397,31]
[392505180,1761583839280,-151.0,0.00027397,31]
[392505181,1761583839290,-151.0,0.00027397,31]
[392505182,1761583839300,-151.0,0.00027397,31]
[392505183,1761583839310,-151.0,0.00027397,31]
[392505184,1761583839319,-225.658521,0.00027397,31]
[392505185,1761583839329,-156.401041,0.00027397,31]
[392505186,1761583839338,-151.0,0.00027397,31]
[392505187,1761583839350,-151.0,0.00027397,31]
[392505188,1761583839360,-151.0,0.00027397,31]
[392505189,1761583839370,-151.0,0.00027397,31]
[392505190,1761583839382,-151.0,0.00027397,31]
[392505191,1761583839392,-151.0,0.00027397,31]
[392505192,1761583839402,-151.0,0.00027397,31]
[392505193,1761583839412,-234.84803031,0.00027397,31]
[392505194,1761583839422,-151.0,0.00027397,31]
[392505195,1761583839432,-156.612198,0.00027397,31]
[392505196,1761583839441,-151.0,0.00027397,31]
[392505197,1761583839451,-151.0,0.00027397,31]
[392505198,1761583839461,-151.0,0.00027397,31]
[392505199,1761583839471,-151.0,0.00027397,10]
[392505200,1761583839480,-151.0,0.00027397,10]
[392505201,1761583839490,-274.575425,0.00027397,31]
[392505202,1761583839500,-151.0,0.00027397,10]
[392505203,1761583839512,-151.0,0.00027397,10]
[392505204,1761583839522,-160.721362,0.00027397,10]
[392505205,1761583839532,-152.581412,0.00027397,31]
[392505206,1761583839541,-151.0,0.00027397,31]
[392505207,1761583839551,-154.211776,0.00027397,31]
[392505208,1761583839560,-151.0,0.00027397,31]
[392505209,1761583839570,-151.0,0.00027397,31]
[392505210,1761583839579,-161.01244,0.00027397,31]
[392505211,1761583839589,-151.0,0.00027397,31]
[392505212,1761583839600,-151.0,0.00027397,31]
[392505213,1761583839609,-151.0,0.00027397,31]
[392505214,1761583839618,-151.0,0.00027397,31]
[392505215,1761583839627,-151.0,0.00027397,31]
[392505216,1761583839637,-151.0,0.00027397,31]
[392505217,1761583839646,-151.0,0.00027397,31]
[392505218,1761583839655,-243.649864,0.00027397,31]
[392505219,1761583839664,-151.0,0.00027397,31]
[392505220,1761583839674,-151.0,0.00027397,31]
[392505221,1761583839683,-151.0,0.00027397,31]
[392505222,1761583839693,-151.0,0.00027397,31]
[392505223,1761583839702,-151.0,0.00027397,31]
[392505224,1761583839712,-151.0,0.00027397,31]
[392505225,1761583839721,-151.0,0.00027397,31]
[392505226,1761583839731,-151.0,0.00027397,31]
[392505227,1761583839740,-193.761296,0.00027397,31]
[392505229,1761583839750,-151.0,0.00027397,31]
[392505231,1761583839759,-162.707354,0.00027397,31]
[392505233,1761583839776,-151.0,0.00027397,31]
[392505234,1761583839788,-151.0,0.00027397,31]
[392505235,1761583839798,-151.0,0.00027397,31]
[392505236,1761583839807,-166.558512,0.00027397,31]
[392505237,1761583839817,-180.600405,0.00027397,31]
[392505238,1761583839827,-180.600405,0.00027397,31]
[392505239,1761583839837,-180.600405,0.00027397,31]
[392505240,1761583839847,-180.600405,0.00027397,31]
[392505241,1761583839856,-151.0,0.00027397,31]
[392505242,1761583839866,-180.600405,0.00027397,31]
[392505243,1761583839876,-158.738735,0.00027397,31]
[392505244,1761583839886,-180.600405,0.00027397,31]
[392505245,1761583839896,-180.600405,0.00027397,31]
[392505246,1761583839906,-180.600405,0.00027397,31]
[392505247,1761583839916,-151.0,0.00027397,31]
[392505248,1761583839926,-180.600405,0.00027397,31]
[392505249,1761583839936,-180.600405,0.00027397,31]
[392505250,1761583839946,-216.351168,0.00027397,31]
[392505251,1761583839956,-180.600405,0.00027397,31]
[392505252,1761583839966,-180.600405,0.00027397,31]
[392505253,1761583839976,-180.600405,0.00027397,31]
[392505254,1761583839986,-180.600405,0.00027397,31]
[392505255,1761583839996,-180.600405,0.00027397,31]
[392505256,1761583840007,-180.600405,0.00027397,31]
[392505257,1761583840017,-180.600405,0.00027397,31]
[392505258,1761583840027,-180.600405,0.00027397,31]
[392505259,1761583840038,-180.600405,0.00027397,31]
[392505260,1761583840048,-180.600401,0.00027397,31]
[392505261,1761583840058,-157.644612,0.00027397,31]
[392505262,1761583840069,-151.0,0.00027397,31]
[392505263,1761583840079,-151.0,0.00027397,31]
[392505264,1761583840089,-151.0,0.00027397,31]
[392505265,1761583840100,-152.572398,0.00027397,31]
[392505266,1761583840110,-151.0,0.00027397,31]
[392505267,1761583840121,-151.0,0.00027397,31]
[392505268,1761583840131,-151.410312,0.00027397,31]
[392505269,1761583840144,-155.469172,0.00027397,31]
[392505270,1761583840154,-151.0,0.00027397,31]
[392505271,1761583840164,-213.086395,0.00027397,31]
[392505272,1761583840174,-151.0,0.00027397,31]
[392505273,1761583840184,-151.0,0.00027397,31]
[392505274,1761583840195,-151.0,0.00027397,31]
[392505275,1761583840205,-151.0,0.00027397,31]
[392505276,1761583840215,-151.0,0.00027397,31]
[392505277,1761583840227,-151.0,0.00027397,31]
[392505278,1761583840237,-151.0,0.00027397,31]
[392505279,1761583840247,-151.0,0.00027397,31]
[392505280,1761583840257,-151.0,0.00027397,31]
[392505281,1761583840267,-296.520677,0.00027397,31]
[392505282,1761583840277,-151.0,0.00027397,31]
[392505283,1761583840287,-151.0,0.00027397,31]
[392505284,1761583840297,-151.0,0.00027397,31]
[392505285,1761583840308,-151.0,0.00027397,31]
[392505286,1761583840319,-151.0,0.00027397,15]
[392505287,1761583840328,-151.0,0.00027397,15]
[392505288,1761583840338,-187.426162,0.00027397,15]
[392505289,1761583840351,-155.171594,0.00027397,31]
[392505290,1761583840362,-151.0,0.00027397,31]
[392505291,1761583840372,-151.0,0.00027397,31]
[392505292,1761583840384,-153.529015,0.00027397,31]
[392505293,1761583840395,-156.833655,0.00027397,31]
[392505294,1761583840406,-151.0,0.00027397,31]
[392505295,1761583840416,-151.0,0.00027397,31]
[392505296,1761583840427,-253.076872,0.00027397,31]
[392505297,1761583840438,-151.0,0.00027397,31]
[392505298,1761583840447,-151.0,0.00027397,31]
[392505299,1761583840458,-156.799692,0.00027397,31]
[392505300,1761583840468,-151.957879,0.00027397,31]
[392505301,1761583840478,-267.927669,0.00027397,31]
[392505302,1761583840488,-236.058765,0.00027397,31]
[392505303,1761583840498,-236.058765,0.00027397,31]
[392505304,1761583840509,-236.058765,0.00027397,31]
[392505305,1761583840523,-156.867739,0.00027397,31]
[392505306,1761583840533,-236.058765,0.00027397,31]
[392505307,1761583840543,-236.058765,0.00027397,31]
[392505308,1761583840556,-236.058765,0.00027397,31]
[392505309,1761583840568,-236.058765,0.00027397,31]
[392505310,1761583840577,-236.058765,0.00027397,31]
[392505311,1761583840588,-151.0,0.00027397,31]
[392505312,1761583840598,-236.058765,0.00027397,31]
[392505313,1761583840609,-151.0,0.00027397,31]
[392505314,1761583840618,-236.058765,0.00027397,31]
[392505315,1761583840628,-151.0,0.00027397,31]
[392505316,1761583840638,-236.058765,0.00027397,31]
[392505317,1761583840648,-236.058765,0.00027397,31]
[392505318,1761583840658,-236.058765,0.00027397,31]
[392505319,1761583840668,-236.058765,0.00027397,31]
[392505320,1761583840677,-236.058765,0.00027397,31]
[392505321,1761583840687,-151.0,0.00027397,31]
[392505322,1761583840697,-236.058765,0.00027397,31]
[392505323,1761583840707,-151.0,0.00027397,31]
[392505324,1761583840718,-151.0,0.00027397,31]
[392505325,1761583840727,-151.0,0.00027397,31]
[392505326,1761583840737,-151.0,0.00027397,31]
[392505327,1761583840747,-151.0,0.00027397,31]
[392505328,1761583840760,-236.058765,0.00027397,31]
[392505329,1761583840770,-151.0,0.00027397,31]
[392505330,1761583840780,-151.0,0.00027397,31]
[392505331,1761583840790,-236.058765,0.00027397,31]
[392505332,1761583840800,-267.532168,0.00027397,31]
[392505333,1761583840810,-236.058765,0.00027397,31]
[392505334,1761583840820,-236.058774,0.00027397,31]
[392505335,1761583840829,-106.81877705,0.00027397,31]
[392505336,1761583840909,-44.18122295,0.00027397,31]
[392505337,1761583840919,-151.0,0.00027397,31]
[392505338,1761583840928,-151.0,0.00027397,31]
[392505339,1761583840938,-151.0,0.00027397,31]
[392505340,1761583840947,-296.109214,0.00027397,31]
[392505341,1761583841082,-155.204976,0.00027397,31]
[392505342,1761583841093,-151.0,0.00027397,31]
[392505343,1761583841103,-151.0,0.00027397,31]
[392505344,1761583841112,-151.0,0.00027397,31]
[392505345,1761583841123,-151.0,0.00027397,31]
[392505346,1761583841133,-151.0,0.00027397,31]
[392505347,1761583841143,-151.0,0.00027397,31]
[392505348,1761583841153,-39.45506629,0.00027397,31]
[392505349,1761583841585,-647.124277,0.00027242,7]
[392505350,1761583841597,-647.124277,0.00027297,7]
[392505351,1761583841607,-174.525468,0.00027397,7]
[392505352,1761583841617,-174.525477,0.00027397,7]
[392505353,1761583841628,-111.54493371,0.00027397,31]
[392505354,1761583841638,-151.0,0.00027397,31]
[392505355,1761583841648,-151.0,0.00027397,31]
[392505356,1761583841658,-151.0,0.00027397,31]
[392505357,1761583841667,-151.0,0.00027397,31]
[392505358,1761583841678,-151.0,0.00027397,31]
[392505359,1761583841688,-151.0,0.00027397,31]
[392505360,1761583841698,-151.0,0.00027397,31]
[392505361,1761583841707,-151.0,0.00027397,31]
[392505362,1761583841717,-151.0,0.00027397,31]
[392505363,1761583841727,-151.0,0.00027397,31]
[392505364,1761583841736,-151.0,0.00027397,31]
[392505365,1761583841746,-151.0,0.00027397,31]
[392505366,1761583841756,-151.0,0.00027397,31]
[392505367,1761583841766,-263.635236,0.00027397,31]
[392505368,1761583841776,-151.0,0.00027397,31]
[392505369,1761583841786,-151.0,0.00027397,31]
[392505370,1761583841795,-151.0,0.00027397,31]
[392505371,1761583841805,-300.392269,0.00027397,31]
[392505372,1761583841814,-151.0,0.00027397,31]
[392505373,1761583841824,-151.0,0.00027397,31]
[392505374,1761583841833,-151.0,0.00027397,31]
[392505375,1761583841844,-129.42703634,0.00027397,31]
[392505388,1761583843414,-41.87703299,0.00027242,7]
[392505422,1761583845962,-605.24724401,0.00027242,7]
[392505423,1761583845972,-444.56148598,0.00027242,7]
[392505428,1761583866051,1493.59086007,0.0002883,120]
[392505430,1761583869225,195.0,0.0002883,120]
[392505437,1761583880373,1250.0,0.00031507,120]
[392505438,1761583917271,1000.0,0.00031507,120]
[392505441,1761583935797,1000.0,0.00031507,120]
[392505446,1761583958774,307.88411044,0.00037121,120]
[392505471,1761584495209,167.73981232,0.0003712,120]
[392505473,1761584652951,4972.83,0.0003712,120]
[392505474,1761584706448,155.0,0.000205,3]
[392505475,1761584828721,300.0,0.00030137,120]
[392505477,1761584862933,304.75,0.0001233,2]
[392505478,1761584863258,304.75,0.00012979,2]
[392505479,1761584863438,304.75,0.00013628,2]
[392505480,1761584863638,304.75,0.00014277,2]
[392505481,1761584863842,304.75,0.00014926,2]
[392505482,1761584864051,304.75,0.00015575,2]
[392505483,1761584864501,304.75,0.00016224,2]
[392505484,1761584864740,304.75,0.00016873,2]
[392505485,1761584864950,304.75,0.00017522,2]
[392505486,1761584865291,304.75,0.00018171,2]
[392505487,1761584865364,304.75,0.0001882,2]
[392505491,1761584927355,2000.0,0.00037121,50]
[392505492,1761584942684,2000.0,0.00037121,50]
[392505493,1761584963093,-304.75,0.00019469,2]
[392505494,1761584963114,-284.0583754,0.00019633,2]
[392505495,1761584963135,-309.1859993,0.00019797,2]
[392505496,1761584963157,-180.00742709,0.00019884,2]
[392505497,1761584963178,-150.0,0.00019897,2]
[392505498,1761584963198,-151.0,0.00019897,2]
[392505499,1761584963219,-116.45752714,0.00019983,2]
[392505513,1761584966983,2000.0,0.00037121,50]
[392505514,1761584971442,-183.54247286,0.00019983,2]
[392505515,1761584971462,-300.0,0.00019983,2]
[392505516,1761584971481,-273.22,0.00019984,2]
[392505517,1761584971501,-151.0,0.00019984,2]
[392505518,1761584971521,-151.0,0.00019984,2]
[392505519,1761584971541,-151.0,0.00019984,2]
[392505520,1761584971562,-151.0,0.00019984,2]
[392505521,1761584971582,-151.0,0.00019984,2]
[392505522,1761584971601,-151.0,0.00019984,2]
[392505523,1761584971622,-151.0,0.00019984,2]
[392505524,1761584971645,-151.0,0.00019984,2]
[392505525,1761584971665,-151.0,0.00019984,2]
[392505526,1761584971685,-151.0,0.00019984,2]
[392505527,1761584971706,-151.0,0.00019984,2]
[392505528,1761584971727,-151.0,0.00019984,2]
[392505529,1761584971747,-78.01773351,0.00019984,2]
[392505530,1761584994601,1847.494,0.00037121,50]
[392505539,1761585032319,-300.0,0.00019983,2]
[392505540,1761585032328,-1200.0,0.00019983,2]
[392505541,1761585032338,-300.0,0.00019983,2]
[392505542,1761585032347,-72.98226649,0.00019984,2]
[392505543,1761585032357,-151.0,0.00019984,2]
[392505544,1761585032372,-151.0,0.00019984,2]
[392505545,1761585032381,-151.0,0.00019984,2]
[392505546,1761585032391,-151.0,0.00019984,2]
[392505547,1761585032400,-151.0,0.00019984,2]
[392505548,1761585032409,-151.0,0.00019984,2]
[392505549,1761585032418,-151.0,0.00019984,2]
[392505550,1761585032427,-151.0,0.00019984,2]
[392505551,1761585032436,-151.0,0.00019984,2]
[392505552,1761585032447,-151.0,0.00019984,2]
[392505553,1761585032456,-151.0,0.00019984,2]
[392505554,1761585032466,-151.0,0.00019984,2]
[392505555,1761585032475,-151.0,0.00019984,2]
[392505557,1761585032484,-151.0,0.00019984,2]
[392505558,1761585032493,-151.0,0.00019984,2]
[392505560,1761585032502,-151.0,0.00019984,2]
[392505561,1761585032512,-151.0,0.00019984,2]
[392505562,1761585032521,-151.0,0.00019984,2]
[392505563,1761585032530,-151.0,0.00019984,2]
[392505564,1761585032539,-151.0,0.00019984,2]
[392505566,1761585032549,-151.0,0.00019984,2]
[392505567,1761585032558,-151.0,0.00019984,2]
[392505568,1761585032568,-211.1539143,0.00019984,2]
[392505569,1761585032577,-151.0,0.00019984,2]
[392505570,1761585032586,-151.0,0.00019984,2]
[392505571,1761585032595,-151.0,0.00019984,2]
[392505572,1761585032604,-151.0,0.00019984,2]
[392505573,1761585032615,-151.0,0.00019984,2]
[392505575,1761585032624,-151.0,0.00019984,2]
[392505576,1761585032634,-151.0,0.00019984,2]
[392505577,1761585032643,-151.0,0.00019984,2]
[392505578,1761585032653,-151.0,0.00019984,2]
[392505579,1761585032662,-500.0,0.00019991,2]
[392505580,1761585032671,-384.44882869,0.00019991,2]
[392505581,1761585032681,-500.0,0.00019991,2]
[392505582,1761585032690,-500.0,0.00019991,2]
[392505583,1761585032699,-169.54024386,0.00019991,2]
[392505584,1761585032709,-15000.01049472,0.0002,2]
[392505585,1761585032719,-151.0,0.00020109,2]
[392505586,1761585032729,-151.0,0.00020112,2]
[392505587,1761585032738,-304.75,0.00020118,2]
[392505588,1761585032749,-151.0,0.00020144,2]
[392505589,1761585032758,-151.0,0.00020157,2]
[392505590,1761585032768,-273.22,0.00020258,2]
[392505591,1761585032778,-273.22,0.00020532,2]
[392505592,1761585032787,-304.75,0.00020767,2]
[392505593,1761585032797,-273.22,0.00020806,2]
[392505594,1761585032807,-273.25505755,0.0002108,2]
[392505595,1761585032816,-250.0,0.00021416,2]
[392505596,1761585032825,-304.75,0.00021416,2]
[392505597,1761585032835,-203.0,0.0002176,2]
[392505598,1761585032844,-198.0,0.0002176,2]
[392505599,1761585032854,-1680.0,0.00021864,2]
[392505600,1761585032865,-151.51,0.00022,2]
[392505601,1761585032874,-304.75,0.00022065,2]
[392505602,1761585032884,-304.75,0.00022714,2]
[392505603,1761585032893,-304.75,0.00023363,2]
[392505604,1761585032903,-165.72,0.00023467,30]
[392505605,1761585032912,-500.0,0.00023781,2]
[392505606,1761585032921,-151.51,0.0002389,2]
[392505607,1761585032930,-1463.0,0.00023922,2]
[392505608,1761585032939,-304.75,0.00024012,2]
[392505609,1761585032949,-250.0,0.0002428,2]
[392505610,1761585032962,-1852.42,0.00024537,2]
[392505611,1761585032972,-880.64,0.00024639,2]
[392505612,1761585032982,-304.75,0.00024661,2]
[392505613,1761585032992,-151.0,0.00024799,7]
[392505614,1761585033002,-1000.0,0.00024802,2]
[392505615,1761585033011,-500.0,0.00024832,2]
[392505616,1761585033020,-181.94,0.00024916,2]
[392505617,1761585033031,-500.0,0.00024932,2]
[392505618,1761585033041,-159.0,0.00025,7]
[392505619,1761585033050,-200.0,0.00025045,2]
[392505620,1761585033059,-1532.8,0.00025113,2]
[392505621,1761585033069,-2172.19429479,0.00025336,2]
[392505622,1761585033078,-1848.87,0.00025694,2]
[392505623,1761585033088,-151.51,0.0002578,7]
[392505624,1761585033097,-5992.7,0.0002585,2]
[392505625,1761585033107,-250.0,0.00025864,2]
[392505626,1761585033117,-250.0,0.00025864,2]
[392505627,1761585033126,-250.0,0.00025864,2]
[392505628,1761585033136,-250.0,0.00025864,2]
[392505629,1761585033150,-159.0,0.0002589,7]
[392505630,1761585033160,-5000.0,0.00025937,2]
[392505631,1761585033169,-165.72,0.00025937,30]
[392505632,1761585033178,-908.87,0.00026208,2]
[392505633,1761585033187,-999.0,0.0002639,3]
[392505634,1761585033197,-2088.81,0.00026441,2]
[392505635,1761585033206,-895.94642774,0.00026626,2]
[392505636,1761585033215,-895.94642773,0.00026626,2]
[392505637,1761585033224,-500.0,0.00027086,2]
[392505638,1761585033234,-179.51604778,0.00027086,2]
[392505639,1761585033244,-167.76800291,0.00027086,2]
[392505640,1761585033254,-1740.0525,0.00027087,2]
[392505641,1761585033263,-200.0,0.00027177,2]
[392505642,1761585033272,-200.0,0.00027178,2]
[392505643,1761585033282,-2050.45779052,0.00027186,2]
[392505644,1761585033291,-33200.2039,0.00027187,2]
[392505645,1761585033300,-1000.0,0.00027187,2]
[392505646,1761585033310,-908.87,0.00027191,2]
[392505647,1761585033319,-771.361,0.00027242,16]
[392505648,1761585033329,-2500.0,0.00027287,2]
[392505649,1761585033338,-152.0,0.00027296,3]
[392505650,1761585033348,-15447.63340995,0.00027297,2]
[392505651,1761585033358,-150.0,0.000273,2]
[392505652,1761585033369,-3062.34923483,0.00027318,2]
[392505653,1761585033721,-500.0,0.00019991,2]
[392505654,1761585033731,-32.832603,0.00019991,2]
[392505658,1761585038066,-467.167397,0.00019991,2]
[392505659,1761585038076,-500.0,0.00019991,2]
[392505660,1761585038085,-4.44116842,0.00019991,2]
[392505661,1761585038123,-495.55883158,0.00019991,2]
[392505662,1761585038132,-500.0,0.00019991,2]
[392505663,1761585038142,-500.0,0.00019991,2]
[392505664,1761585038152,-500.0,0.00019991,2]
[392505665,1761585038161,-500.0,0.00019991,2]
[392505666,1761585038171,-500.0,0.00019991,2]
[392505667,1761585038180,-500.0,0.00019991,2]
[392505668,1761585038189,-500.0,0.00019991,2]
[392505669,1761585038199,-500.0,0.00019991,2]
[392505670,1761585038208,-500.0,0.00019991,2]
[392505671,1761585038217,-500.0,0.00019991,2]
[392505672,1761585038228,-500.0,0.00019991,2]
[392505673,1761585038237,-500.0,0.00019991,2]
[392505674,1761585038247,-500.0,0.00019991,2]
[392505675,1761585038256,-500.0,0.00019991,2]
[392505676,1761585038266,-500.0,0.00019991,2]
[392505677,1761585038275,-582.45701053,0.00019991,2]
[392505678,1761585038284,-500.0,0.00019991,2]
[392505679,1761585038294,-500.0,0.00019991,2]
[392505680,1761585038303,-500.0,0.00019991,2]
[392505681,1761585038313,-500.0,0.00019991,2]
[392505682,1761585038322,-500.0,0.00019991,2]
[392505683,1761585038332,-500.0,0.00019991,2]
[392505685,1761585038341,-500.0,0.00019991,2]
[392505687,1761585038351,-500.0,0.00019991,2]
[392505689,1761585038360,-500.0,0.00019991,2]
[392505691,1761585038369,-500.0,0.00019991,2]
[392505693,1761585038379,-500.0,0.00019991,2]
[392505695,1761585038389,-500.0,0.00019991,2]
[392505696,1761585038398,-500.0,0.00019991,2]
[392505698,1761585038407,-500.0,0.00019991,2]
[392505700,1761585038417,-500.0,0.00019991,2]
[392505702,1761585038426,-500.0,0.00019991,2]
[392505704,1761585038435,-500.0,0.00019991,2]
[392505705,1761585038445,-151.0,0.00020171,2]
[392505706,1761585038454,-21727.3205084,0.00027318,2]
[392505707,1761585038464,-27457.467109,0.00027362,2]
[392505708,1761585038474,-916.1329902,0.00027362,2]
[392505710,1761585038483,-15670.4393822,0.00027362,2]
[392505711,1761585038492,-332.4144064,0.00027362,7]
[392505712,1761585038624,-195.4131546,0.00027362,7]
[392505713,1761585038633,-203.3503006,0.00027362,7]
[392505714,1761585038646,-324.4772604,0.00027362,7]
[392505715,1761585038656,-527.827561,0.00027362,7]
[392505716,1761585038666,-35.47465205,0.00027362,7]
[392505718,1761585040175,-304.08754,0.00027362,7]
[392505719,1761585040226,-188.26536895,0.00027362,7]